bitfinex/quotes_ETHUSD_20251012
["timestamp","ask_amount","ask_price","bid_price","bid_amount"]
[1760227201688,0.001,3757.1,3757.0,45.9815841]
[1760227202321,0.001,3757.1,3757.0,46.6151841]
[1760227202522,0.001,3757.1,3757.0,49.34016537]
[1760227202926,0.001,3757.1,3757.0,50.57016537]
[1760227204538,0.001,3758.2,3757.1,0.6336]
[1760227204704,0.001,3758.2,3758.1,0.2179]
[1760227205131,0.001,3758.2,3758.1,0.6876]
[1760227205500,0.001,3758.2,3758.1,0.4697]
[1760227205899,0.001,3758.2,3758.1,1.72630919]
[1760227206096,0.001,3758.2,3758.1,1.92073011]
[1760227206415,0.001,3758.2,3758.1,4.58164919]
[1760227206596,0.001,3758.2,3758.1,1.45103011]
[1760227206798,6.294955,3758.2,3758.1,1.23]
[1760227207229,0.001,3758.2,3758.1,5.59061908]
[1760227207427,4.22784,3758.2,3758.1,5.12091908]
[1760227207598,0.001,3758.2,3758.1,5.12091908]
[1760227208299,2.712672,3758.2,3758.1,2.46]
[1760227208500,3.05999068,3758.2,3758.1,2.46]
[1760227208795,30.47961868,3758.2,3758.1,3.69]
[1760227209123,2.99313782,3758.2,3758.1,3.69]
[1760227209322,2.63396968,3758.2,3758.1,3.69]
[1760227209508,0.34831868,3758.2,3758.1,6.35091908]
[1760227209712,0.001,3758.2,3758.1,7.98668505]
[1760227209925,0.001,3758.2,3758.1,6.35091908]
[1760227210124,2.797918,3758.2,3758.1,4.92]
[1760227210328,3.297216,3758.2,3758.1,7.58091908]
[1760227210850,2.278,3758.2,3758.1,4.92]
[1760227211058,3.0429,3758.2,3758.1,4.92]
[1760227211349,8.80705082,3758.2,3758.1,4.92]
[1760227211555,2.896097,3758.2,3758.1,6.15]
[1760227211757,2.086677,3758.2,3758.1,6.15]
[1760227212252,6.856949,3758.2,3758.1,6.15]
[1760227212453,5.573918,3758.2,3758.1,6.15]
[1760227213038,5.573918,3758.2,3758.1,7.38]
[1760227213246,14.352405,3758.2,3758.1,7.38]
[1760227213572,18.35334009,3758.2,3758.1,7.38]
[1760227214315,34.13323509,3758.2,3758.1,7.38]
[1760227214529,31.47238682,3758.2,3758.1,8.61]
[1760227214719,34.13323509,3758.2,3758.1,8.61]
[1760227215128,34.41067664,3758.2,3758.1,8.61]
[1760227215760,34.41067664,3758.2,3758.1,1.84259662]
[1760227215962,33.29487315,3757.6,3757.5,2.4e-07]
[1760227216163,33.91963338,3757.6,3757.5,2.4e-07]
[1760227216465,33.91963338,3757.6,3757.1,0.002]
[1760227216466,3.29515647,3757.2,3757.1,0.002]
[1760227216760,34.27908484,3757.2,3757.1,0.002]
[1760227216968,34.82794381,3757.2,3757.1,0.002]
[1760227217127,34.82794381,3757.2,3757.1,1.232]
[1760227217545,31.45990052,3757.2,3757.1,1.232]
[1760227217778,33.84401544,3757.2,3757.1,1.232]
[1760227218447,33.84401544,3757.2,3757.1,2.462]
[1760227219480,34.55050226,3757.2,3757.1,2.462]
[1760227219872,34.55050226,3757.2,3757.1,3.692]
[1760227220647,33.91690226,3757.2,3757.1,3.692]
[1760227221065,34.55050226,3757.2,3757.1,3.692]
[1760227221263,34.55050226,3757.2,3757.1,4.922]
[1760227221988,34.13294329,3757.2,3757.1,4.922]
[1760227222349,4.13294329,3757.2,3757.1,4.922]
[1760227222569,34.13294329,3757.2,3757.1,4.922]
[1760227222781,34.13294329,3757.2,3757.1,6.152]
[1760227223392,4.13294329,3757.2,3757.1,6.152]
[1760227223698,34.13294329,3757.2,3757.1,6.152]
[1760227224196,30.6336,3756.8,3756.7,106.56255525]
[1760227224487,34.15101002,3756.8,3756.7,106.56255525]
[1760227224655,34.42845157,3756.8,3756.7,91.72255525]
[1760227225068,34.42845157,3756.8,3756.7,87.48255525]
[1760227225401,4.42845157,3756.8,3756.7,80.23255525]
[1760227225602,34.42845157,3756.8,3756.7,80.23255525]
[1760227226790,34.42845157,3756.8,3756.7,72.98255525]
[1760227226991,34.42845157,3756.8,3756.7,66.62255525]
[1760227227192,34.42845157,3756.8,3756.7,64.50255525]
[1760227227395,34.42845157,3756.8,3756.7,62.38255525]
[1760227228207,34.42845157,3756.8,3756.7,63.61255525]
[1760227229607,34.42845157,3756.8,3756.7,64.84255525]
[1760227231007,34.42845157,3756.8,3756.7,66.07255525]
[1760227232280,34.42845157,3756.8,3756.7,67.30255525]
[1760227232485,34.42845157,3756.8,3756.7,67.21052525]
[1760227233585,34.42845157,3756.8,3756.7,55.72052525]
[1760227233781,34.42845157,3756.8,3756.7,51.48052525]
[1760227234282,32.67590957,3756.8,3756.0,1.215]
[1760227234513,33.29593593,3756.1,3756.0,0.223753]
[1760227234707,34.0697795,3756.1,3756.0,0.223753]
[1760227234988,34.48748325,3756.1,3756.0,0.223753]
[1760227235195,34.12238123,3756.1,3756.0,0.223753]
[1760227235402,34.48748325,3756.1,3756.0,0.223753]
[1760227235717,2.18431546,3756.1,3756.0,0.223753]
[1760227236015,34.48748325,3756.1,3756.0,0.223753]
[1760227237623,34.84665139,3756.1,3756.0,1.453753]
[1760227237996,34.56920984,3756.1,3756.0,1.453753]
[1760227238516,31.90687391,3756.1,3756.0,1.453753]
[1760227238708,31.27327391,3756.1,3756.0,1.453753]
[1760227239109,31.90687391,3756.1,3756.0,2.683753]
[1760227239920,34.56920984,3756.1,3756.0,2.683753]
[1760227240230,14.67280591,3756.1,3756.0,2.683753]
[1760227240393,3.75146875,3756.1,3756.0,2.683753]
[1760227240594,2.35633,3756.1,3756.0,4.18539092]
[1760227240894,24.098583,3756.4,3756.0,4.18539092]
[1760227241114,9.98001,3756.2,3756.0,3.913753]
[1760227241291,8.717874,3756.2,3756.0,3.913753]
[1760227241517,7.966496,3756.1,3756.0,3.913753]
[1760227241794,6.420855,3756.1,3756.0,3.913753]
[1760227242006,19.733993,3756.3,3756.0,7.83278387]
[1760227242325,6.442055,3756.2,3756.0,5.143753]
[1760227242526,9.951898,3756.1,3756.0,5.143753]
[1760227242728,10.083198,3756.1,3756.0,5.143753]
[1760227243025,6.902255,3756.1,3756.0,5.143753]
[1760227243226,6.386458,3756.1,3756.0,5.143753]
[1760227243414,0.36510202,3756.3,3756.0,5.143753]
[1760227243415,0.36510202,3756.3,3756.0,9.81738232]
[1760227243728,0.36510202,3756.3,3756.2,2.66226505]
[1760227244032,9.812453,3757.0,3756.5,2.66203382]
[1760227244226,0.6336,3757.3,3756.6,0.02661981]
[1760227244525,5.222899,3756.8,3756.6,0.02661981]
[1760227244731,5.222899,3756.8,3756.6,1.23]
[1760227244927,0.1313,3756.8,3756.6,1.23]
[1760227245227,5.276636,3756.7,3756.6,1.25661981]
[1760227245434,0.1313,3756.7,3756.6,1.23]
[1760227245621,4.63867,3756.7,3756.6,1.23]
[1760227246147,8.668545,3756.7,3756.6,1.23]
[1760227246432,8.668545,3756.7,3756.6,2.46]
[1760227247198,11.978669,3756.7,3756.6,2.46]
[1760227247410,7.62376849,3756.7,3756.6,1.65987198]
[1760227247615,7.26460035,3756.7,3756.6,1.65987198]
[1760227247814,7.26460035,3756.7,3756.6,2.88987198]
[1760227248249,32.39073535,3756.7,3756.6,2.88987198]
[1760227248465,29.55824135,3756.7,3756.6,2.88987198]
[1760227248617,26.04070749,3756.7,3756.6,2.88987198]
[1760227248967,25.93389049,3756.7,3756.6,2.88987198]
[1760227249112,36.0464142,3756.7,3756.6,4.11987198]
[1760227249946,33.38450349,3756.7,3756.6,4.11987198]
[1760227250150,0.001,3756.7,3756.6,7.14473422]
[1760227250322,0.001,3756.7,3756.6,7.57603422]
[1760227250525,0.001,3756.7,3756.6,8.80603422]
[1760227252253,0.001,3756.7,3756.6,9.60473422]
[1760227252424,0.001,3756.7,3756.6,9.24185355]
[1760227252625,0.001,3756.7,3756.6,9.67315355]
[1760227253250,0.001,3756.7,3756.6,6.57987198]
[1760227253556,0.001,3756.7,3756.6,10.47185355]
[1760227253721,0.001,3756.7,3756.6,7.80987198]
[1760227253922,0.001,3756.7,3756.6,10.47185355]
[1760227254858,0.001,3756.7,3756.6,11.70185355]
[1760227255539,0.001,3756.7,3756.6,13.18294103]
[1760227255735,0.001,3756.7,3756.6,13.62984103]
[1760227256177,0.001,3756.7,3756.6,14.85984103]
[1760227256337,0.1338,3756.7,3756.6,14.85984103]
[1760227257568,0.001,3756.7,3756.6,16.08984103]
[1760227258371,0.001,3756.7,3756.6,15.64294103]
[1760227258563,0.001,3756.7,3756.6,16.08984103]
[1760227258742,0.001,3756.7,3756.6,17.31984103]
[1760227259366,0.001,3756.7,3756.6,15.39185355]
[1760227259766,0.1323,3756.7,3756.6,12.72987198]
[1760227260155,0.1323,3756.7,3756.6,13.95987198]
[1760227260472,0.47173535,3756.7,3756.6,13.95987198]
[1760227260673,6.96114235,3756.7,3756.6,13.95987198]
[1760227261575,2.39173535,3756.7,3756.6,15.18987198]
[1760227261739,5.09774135,3756.7,3756.6,15.18987198]
[1760227261945,1.921,3756.7,3756.6,15.18987198]
[1760227262182,1.921,3756.7,3756.6,19.81774075]
[1760227262344,0.001,3756.7,3756.6,19.81774075]
[1760227262762,0.001,3756.7,3756.6,21.04774075]
[1760227262983,0.001,3757.5,3757.4,2.6614148]
[1760227263459,0.001,3757.5,3757.4,3.13492894]
[1760227263664,0.001,3757.5,3757.4,3.71457258]
[1760227264081,0.001,3757.5,3757.4,3.68795844]
[1760227264394,0.001,3757.5,3757.4,4.91795844]
[1760227264892,0.001,3757.5,3757.4,3.8914148]
[1760227265261,0.001,3757.5,3757.4,4.36492894]
[1760227265463,0.001,3758.2,3757.8,2.66113151]
[1760227265663,0.001,3758.2,3757.8,2.68774282]
[1760227265878,0.001,3758.2,3757.8,3.13464282]
[1760227266096,0.001,3758.2,3757.8,3.71422975]
[1760227266962,0.001,3758.2,3757.8,4.34782975]
[1760227267166,0.001,3758.2,3757.8,5.57782975]
[1760227267376,0.001,3758.2,3757.8,2.25648693]
[1760227267587,0.001,3758.2,3757.8,4.36464282]
[1760227267999,0.001,3758.2,3757.8,1.70351131]
[1760227268368,0.001,3758.2,3757.8,2.9069]
[1760227268568,0.001,3758.2,3757.8,2.46]
[1760227268798,0.001,3758.2,3757.8,2.9069]
[1760227269304,0.001,3758.2,3757.8,2.46]
[1760227269967,0.001,3758.2,3757.8,3.69]
[1760227270369,1.921,3758.2,3757.8,3.69]
[1760227271265,4.58206069,3757.9,3757.8,3.69]
[1760227271488,25.40137469,3757.9,3757.8,4.92]
[1760227271690,26.03497469,3757.9,3757.8,4.92]
[1760227271904,26.3930658,3757.9,3757.8,4.92]
[1760227272271,26.3930658,3757.9,3757.8,2.25404683]
[1760227272497,35.7069518,3757.9,3757.8,2.9e-07]
[1760227272683,35.7069518,3757.9,3757.4,2.46]
[1760227272684,3.29494397,3757.5,3757.4,3.1e-07]
[1760227272884,35.57303508,3757.5,3757.4,3.1e-07]
[1760227273087,35.70623508,3757.5,3757.4,3.1e-07]
[1760227273421,35.95708417,3757.5,3757.4,3.1e-07]
[1760227274171,3.29551071,3756.7,3756.6,14.98526503]
[1760227274366,35.34871071,3756.7,3756.6,14.98526503]
[1760227274570,29.36655971,3756.7,3756.6,14.98526503]
[1760227274766,17.80634671,3756.7,3756.6,14.98526503]
[1760227275005,4.377522,3756.7,3756.6,14.98526503]
[1760227275370,4.876746,3756.7,3756.6,14.98526503]
[1760227275708,1.92,3756.7,3756.6,16.21526503]
[1760227276909,0.41757011,3757.4,3756.6,16.21526503]
[1760227277070,6.970318,3757.4,3756.6,18.65651547]
[1760227277270,7.515742,3757.5,3756.7,0.0266191]
[1760227277502,9.265263,3757.8,3756.8,0.4469]
[1760227277706,0.001,3757.9,3756.8,0.4469]
[1760227277905,0.001,3757.9,3756.9,2.68832401]
[1760227278238,0.001,3757.9,3757.0,3.24134692]
[1760227278446,0.001,3757.9,3757.1,0.02661627]
[1760227278644,0.001,3757.9,3757.1,2.68821152]
[1760227278807,0.001,3757.9,3757.1,0.02661627]
[1760227279734,0.001,3757.9,3757.1,1.25661627]
[1760227279945,0.001,3757.9,3757.2,0.6174923]
[1760227280449,0.001,3757.9,3757.3,0.4469]
[1760227280616,0.001,3757.9,3757.4,0.02661414]
[1760227281330,0.001,3757.9,3757.5,0.02661343]
[1760227281525,2.400368,3757.8,3757.5,0.02661343]
[1760227281701,0.1328,3757.5,3757.4,1.23]
[1760227282106,0.1328,3757.5,3757.4,1.9229]
[1760227282534,0.1328,3757.5,3757.4,2.706]
[1760227282715,0.1328,3757.5,3757.4,2.46]
[1760227284033,0.1328,3757.5,3757.4,3.69]
[1760227285312,9.384817,3757.5,3757.4,4.92]
[1760227285513,9.518017,3757.5,3757.4,4.92]
[1760227285726,8.346509,3757.5,3757.4,4.92]
[1760227286427,13.03735097,3757.5,3757.4,4.92]
[1760227286807,13.03735097,3757.5,3757.4,6.15]
[1760227287243,13.37748005,3757.5,3757.4,6.15]
[1760227287447,36.18654638,3757.5,3757.4,6.15]
[1760227287658,3.29515647,3757.2,3757.1,1.232]
[1760227287813,4.58146196,3757.4,3756.6,16.01065648]
[1760227287814,2.66191071,3756.7,3756.6,16.01065648]
[1760227288009,35.05403979,3756.7,3756.6,16.00935648]
[1760227289046,35.4716171,3756.7,3756.6,16.00935648]
[1760227289250,35.05403979,3756.7,3756.6,16.00935648]
[1760227289423,35.05403979,3756.7,3756.6,17.23935648]
[1760227290956,14.146568,3756.7,3756.6,18.46935648]
[1760227291117,17.28060779,3756.7,3756.6,18.46935648]
[1760227291318,27.44876979,3756.7,3756.6,18.46935648]
[1760227292316,5.68763979,3756.7,3756.6,18.46935648]
[1760227292584,35.68763979,3756.7,3756.6,19.69935648]
[1760227292886,36.05311312,3756.7,3756.6,19.69935648]
[1760227293898,36.05311312,3756.7,3756.6,20.92935648]
[1760227294588,35.21579418,3756.3,3755.6,28.28287323]
[1760227294772,35.92139659,3756.3,3755.6,28.28287323]
[1760227295088,36.47104672,3756.3,3755.6,28.28287323]
[1760227295265,36.47104672,3756.3,3756.2,1.232]
[1760227296752,36.47104672,3756.3,3756.2,2.462]
[1760227298289,4.85362513,3756.3,3756.2,2.462]
[1760227298501,0.41765013,3756.3,3756.2,3.692]
[1760227298702,8.71543013,3756.3,3756.2,4.58419254]
[1760227298857,9.521757,3756.3,3756.2,3.692]
[1760227299394,8.510156,3756.7,3756.2,3.692]
[1760227299606,5.208725,3756.8,3756.3,0.02662194]
[1760227299892,2.42419,3756.6,3756.3,0.02662194]
[1760227300097,2.66156361,3757.2,3756.3,0.02662194]
[1760227300098,7.569536,3757.1,3756.3,0.02662194]
[1760227300305,0.1328,3756.3,3756.2,4.922]
[1760227300485,6.237184,3756.3,3756.2,4.922]
[1760227301196,6.237184,3756.3,3756.2,6.152]
[1760227301357,9.23950726,3756.3,3756.2,6.152]
[1760227301665,15.17415559,3756.3,3756.2,6.152]
[1760227302583,36.18619659,3756.3,3756.2,7.382]
[1760227302787,32.84448359,3756.3,3756.2,7.382]
[1760227303096,33.26210125,3756.3,3756.2,7.382]
[1760227303490,6.60381425,3756.3,3756.2,7.382]
[1760227303702,36.60381425,3756.3,3756.2,7.382]
[1760227303857,36.60381425,3756.3,3756.2,8.612]
[1760227304463,36.60381425,3756.3,3756.2,5.21440391]
[1760227305290,36.60381425,3756.3,3756.2,6.44440391]
[1760227305492,6.60381425,3756.3,3756.2,6.44440391]
[1760227305693,36.60381425,3756.3,3756.2,6.44440391]
[1760227306815,36.10554092,3756.3,3756.2,7.67440391]
[1760227307162,36.47101425,3756.3,3756.2,7.67440391]
[1760227308073,36.47101425,3756.3,3756.2,8.90440391]
[1760227308697,36.47101425,3756.3,3755.8,1e-08]
[1760227308698,35.2160777,3755.9,3755.8,1e-08]
[1760227308859,35.67140678,3755.9,3755.8,1e-08]
[1760227309065,35.80430678,3755.9,3755.8,1e-08]
[1760227310489,36.16978011,3755.9,3755.8,1e-08]
[1760227310882,36.16978011,3755.9,3755.8,1.23000001]
[1760227311083,35.80430678,3755.9,3755.8,1.23000001]
[1760227312295,35.80430678,3755.9,3755.8,2.46000001]
[1760227313805,9.139622,3755.9,3755.8,3.69000001]
[1760227313960,8.9316087,3755.9,3755.8,3.69000001]
[1760227314166,11.4852087,3755.9,3755.8,3.69000001]
[1760227314766,19.0108887,3755.9,3755.8,3.69000001]
[1760227315005,3.527484,3755.9,3755.8,3.69000001]
[1760227315162,3.527484,3755.9,3755.8,4.92000001]
[1760227315579,5.447484,3755.9,3755.8,4.92000001]
[1760227315799,30.6140557,3755.9,3755.8,4.92000001]
[1760227316200,30.95418478,3755.9,3755.8,4.92000001]
[1760227316364,30.95418478,3755.9,3755.8,6.15000001]
[1760227316565,31.58778478,3755.9,3755.8,6.15000001]
[1760227316871,36.16978011,3755.9,3755.8,6.15000001]
[1760227317295,30.71797178,3755.9,3755.8,6.15000001]
[1760227317662,5.80430678,3755.9,3755.8,6.15000001]
[1760227317867,36.16978011,3755.9,3755.8,7.38200001]
[1760227318106,36.17078011,3755.9,3755.8,7.38200001]
[1760227318912,35.80530678,3755.9,3755.8,7.38200001]
[1760227319274,35.80530678,3755.9,3755.8,8.61200001]
[1760227320815,35.80530678,3755.9,3755.8,9.84200001]
[1760227321524,33.56692878,3755.9,3755.8,9.84200001]
[1760227321882,35.80530678,3755.9,3755.8,9.84200001]
[1760227322378,35.80530678,3755.9,3755.8,11.07200001]
[1760227323022,5.80530678,3755.9,3755.8,11.07200001]
[1760227323204,35.80530678,3755.9,3755.8,11.07200001]
[1760227323786,10.94506308,3755.9,3755.8,12.30200001]
[1760227323996,21.261137,3755.9,3755.8,12.30200001]
[1760227324587,15.460189,3755.9,3755.8,12.30200001]
[1760227324786,12.752995,3755.9,3755.8,12.30200001]
[1760227325001,15.526744,3755.9,3755.8,12.30200001]
[1760227325226,15.526744,3755.9,3755.8,13.53200001]
[1760227326120,19.891782,3755.9,3755.8,13.53200001]
[1760227326784,22.5542597,3755.9,3755.8,13.53200001]
[1760227327012,35.80530678,3755.9,3755.8,14.76200001]
[1760227328184,36.17078011,3755.9,3755.8,15.99200001]
[1760227328416,36.4216292,3755.9,3755.8,15.99200001]
[1760227329722,36.4216292,3755.9,3755.8,17.18396051]
[1760227330223,33.29621948,3755.7,3755.6,23.91941123]
[1760227330423,35.21621948,3755.7,3755.6,23.91941123]
[1760227330726,36.30557098,3755.7,3755.6,23.91941123]
[1760227330907,36.30557098,3755.7,3755.6,25.14941123]
[1760227331084,35.59993947,3755.6,3755.5,1.23]
[1760227331289,36.43844188,3755.6,3755.5,1e-08]
[1760227331494,35.21664492,3755.1,3755.0,0.002]
[1760227331814,36.17309642,3755.1,3755.0,0.002]
[1760227332007,36.30599642,3755.1,3755.0,0.002]
[1760227332189,36.30599642,3755.1,3755.0,1.232]
[1760227333335,36.72382864,3755.1,3755.0,1.232]
[1760227333730,36.72382864,3755.1,3755.0,2.462]
[1760227335028,36.72382864,3755.1,3755.0,3.692]
[1760227335548,36.72382864,3755.1,3754.6,0.002]
[1760227335747,36.72382864,3755.1,3752.9,7.64037321]
[1760227335748,35.9291097,3753.0,3752.9,7.64037321]
[1760227335909,19.383984,3753.0,3752.9,7.64037321]
[1760227336108,32.019,3753.0,3752.9,7.64037321]
[1760227336843,8.389954,3753.0,3752.9,7.64037321]
[1760227337044,1.92,3753.0,3752.9,7.64037321]
[1760227337231,5.752267,3753.2,3752.9,8.40441053]
[1760227337675,5.752267,3753.2,3752.9,9.63441053]
[1760227337846,4.060866,3753.5,3752.9,9.63441053]
[1760227338139,0.1394,3753.6,3753.0,0.02664535]
[1760227338520,4.984879,3753.5,3752.9,9.63441053]
[1760227338723,14.68511,3753.3,3752.9,3.80222968]
[1760227338923,14.68511,3753.3,3752.9,1.66799779]
[1760227338924,30.0,3753.1,3752.9,1.66799779]
[1760227339146,25.79378933,3753.0,3752.9,1.66799779]
[1760227339314,26.59086033,3753.0,3752.9,1.66799779]
[1760227339514,11.59579533,3753.0,3752.9,1.66799779]
[1760227339843,12.60543033,3753.0,3752.9,1.66799779]
[1760227340043,11.87943033,3753.0,3752.9,1.83479757]
[1760227340257,4.57847333,3753.0,3752.9,1.83479757]
[1760227340445,4.67747333,3753.0,3752.9,1.83479757]
[1760227340656,4.67747333,3753.0,3752.9,2.89799779]
[1760227340851,2.45047333,3753.0,3752.9,2.89799779]
[1760227341015,22.85388733,3753.0,3752.9,2.89799779]
[1760227341356,25.51842236,3753.0,3752.9,2.89799779]
[1760227341755,35.11500836,3753.0,3752.9,2.89799779]
[1760227341956,35.81178466,3753.0,3752.9,2.89799779]
[1760227342157,35.81178466,3753.0,3752.9,4.12799779]
[1760227343268,36.44538466,3753.0,3752.9,4.12799779]
[1760227343476,36.44538466,3753.0,3752.9,5.35799779]
[1760227343634,3.29849007,3752.5,3752.4,1.23]
[1760227343967,5.21863211,3752.3,3750.8,1.23]
[1760227344167,35.89266252,3752.0,3750.8,1.23]
[1760227344375,32.01769381,3751.8,3750.8,1.23]
[1760227344549,31.98708014,3751.8,3750.8,1.23]
[1760227344861,35.74966061,3751.8,3750.8,1.23]
[1760227345033,35.74966061,3751.8,3751.7,2.46]
[1760227345855,2.66574254,3751.3,3751.2,15.71093238]
[1760227346054,35.11641587,3751.3,3751.2,15.71093238]
[1760227346237,35.75001587,3751.3,3751.2,14.27068785]
[1760227346642,31.28178787,3751.3,3751.2,11.6003363]
[1760227346843,34.16225787,3751.3,3751.2,11.6003363]
[1760227347948,35.75001587,3751.3,3751.2,11.6003363]
[1760227348149,35.75001587,3751.3,3751.2,10.71851724]
[1760227348768,35.75001587,3751.3,3751.2,5.93640791]
[1760227349071,36.07986496,3751.3,3751.2,3.38214246]
[1760227349442,36.07986496,3751.3,3751.2,4.61214246]
[1760227350650,36.07986496,3751.3,3751.2,5.84214246]
[1760227351671,2.5536,3751.2,3750.8,1.23]
[1760227351970,32.5536,3750.9,3750.8,1.23]
[1760227352174,32.5536,3750.9,3750.8,0.56583688]
[1760227352175,33.41412242,3750.9,3750.8,0.56583688]
[1760227352372,34.58666666,3750.0,3749.9,1.58443841]
[1760227352536,31.14029399,3750.0,3749.9,1.58443841]
[1760227352739,31.47014308,3750.0,3749.9,1.58443841]
[1760227352971,36.08078908,3750.0,3749.9,1.58443841]
[1760227353478,36.23383783,3750.0,3749.9,1.58443841]
[1760227353655,36.23383783,3750.0,3749.9,2.81443841]
[1760227353852,22.34086217,3750.0,3749.9,2.81443841]
[1760227354054,12.70333408,3750.0,3749.9,2.81443841]
[1760227354444,15.37000074,3750.0,3749.9,2.81443841]
[1760227355184,19.41461474,3750.0,3749.9,4.04443841]
[1760227355738,15.58807974,3750.0,3749.9,4.04443841]
[1760227356046,6.83501708,3750.0,3749.9,4.04443841]
[1760227356361,6.83501708,3750.0,3749.9,5.27443841]
[1760227356781,9.50168374,3750.0,3749.9,5.27443841]
[1760227356986,13.39221608,3750.0,3749.9,5.27443841]
[1760227357204,13.15137108,3750.0,3749.9,5.27443841]
[1760227357506,13.25057108,3750.0,3749.9,5.27443841]
[1760227357666,11.44655508,3750.0,3749.9,5.27443841]
[1760227357865,3.39089408,3750.0,3749.9,7.03188225]
[1760227358070,2.87778575,3750.0,3749.9,7.03188225]
[1760227358805,30.15304875,3750.0,3749.9,7.03188225]
[1760227359120,31.40288808,3750.0,3749.9,7.03188225]
[1760227359402,31.40288808,3750.0,3749.9,7.73443841]
[1760227360114,32.50452208,3750.0,3749.9,7.73443841]
[1760227360321,32.60372208,3750.0,3749.9,7.73443841]
[1760227360788,32.50452208,3750.0,3749.9,8.96443841]
[1760227361478,32.60372208,3750.0,3749.9,8.96443841]
[1760227361873,0.32984909,3751.2,3749.9,10.30038225]
[1760227362077,0.15336119,3751.2,3750.0,0.46616666]
[1760227362320,8.128098,3751.1,3750.1,0.2315]
[1760227362471,0.0992,3751.4,3750.1,0.2315]
[1760227362671,6.009143,3751.1,3750.2,1.17618823]
[1760227362894,0.40105666,3752.1,3750.2,1.17618823]
[1760227363098,13.622485,3751.8,3750.3,0.46616453]
[1760227363374,2.0213,3751.8,3750.3,0.46616453]
[1760227363574,0.1328,3750.6,3750.3,1.6695]
[1760227363796,0.1328,3750.6,3750.4,3.41358424]
[1760227364006,0.1328,3750.6,3750.5,0.02666311]
[1760227364209,0.1328,3750.8,3750.5,3.13247426]
[1760227364412,0.1328,3750.8,3750.6,3.10571363]
[1760227364705,7.98463,3751.8,3750.7,0.34400956]
[1760227364891,1.92,3751.2,3750.6,1.23]
[1760227365091,1.92,3751.0,3750.6,1.23]
[1760227365612,1.92,3751.4,3750.6,1.23]
[1760227365773,1.92,3751.2,3750.6,1.23]
[1760227365970,1.92,3751.0,3750.6,1.23]
[1760227366195,1.92,3750.8,3750.6,2.46]
[1760227366402,9.909946,3750.7,3750.6,2.46]
[1760227366897,1.92,3750.7,3750.6,2.9295]
[1760227367736,1.92,3750.7,3750.6,4.1595]
[1760227367914,1.92,3750.7,3750.6,4.69845]
[1760227368582,1.92,3750.7,3750.6,4.22895]
[1760227368775,1.92,3750.7,3750.6,3.69]
[1760227369313,1.92,3750.7,3750.6,4.92]
[1760227369815,1.92,3750.7,3750.6,5.3895]
[1760227370711,1.92,3750.7,3750.6,6.6195]
[1760227371411,1.921,3750.7,3750.6,6.6195]
[1760227371642,1.921,3750.7,3750.6,7.40445]
[1760227372007,1.921,3750.7,3750.6,8.63445]
[1760227372408,1.921,3750.7,3750.6,7.38]
[1760227373343,1.921,3750.7,3750.6,8.61]
[1760227373526,6.167519,3750.7,3750.6,8.61]
[1760227373726,1.921,3750.7,3750.6,8.61]
[1760227374012,5.135918,3750.7,3750.6,8.61]
[1760227374814,5.135918,3750.7,3750.6,9.84]
[1760227376246,5.135918,3750.7,3750.6,11.07]
[1760227376923,11.328855,3750.7,3750.6,11.07]
[1760227377225,5.226485,3750.7,3750.6,11.07]
[1760227377642,5.226485,3750.7,3750.6,12.3]
[1760227377823,1.921,3750.7,3750.6,12.3]
[1760227378749,3.964694,3750.7,3750.6,12.3]
[1760227378914,11.879814,3750.7,3750.6,13.53]
[1760227379319,8.50068766,3750.7,3750.6,13.53]
[1760227379632,4.054896,3750.7,3750.6,13.53]
[1760227379830,5.354522,3750.7,3750.6,13.53]
[1760227380437,5.85457866,3750.7,3750.6,14.76]
[1760227380955,8.718714,3750.7,3750.6,14.76]
[1760227381155,8.817714,3750.7,3750.6,14.76]
[1760227381736,5.00274,3750.7,3750.6,15.99]
[1760227381928,8.155821,3750.7,3750.6,15.95954005]
[1760227382436,8.254821,3750.7,3750.6,15.95954005]
[1760227382967,14.140592,3750.7,3750.6,15.95954005]
[1760227383162,10.419192,3750.7,3750.6,17.18954005]
[1760227384035,18.213536,3750.7,3750.6,17.18954005]
[1760227384531,14.453629,3750.7,3750.6,18.41954005]
[1760227384729,5.489247,3750.7,3750.6,18.41954005]
[1760227384958,5.547083,3750.7,3750.6,18.41954005]
[1760227385266,5.547083,3750.7,3750.6,20.38449405]
[1760227385267,8.935866,3750.7,3750.6,20.38449405]
[1760227385469,8.935866,3750.7,3750.6,18.41954005]
[1760227385770,7.088469,3750.7,3750.6,18.41954005]
[1760227385966,8.69806,3750.7,3750.6,19.64954005]
[1760227386337,8.79706,3750.7,3750.6,19.64954005]
[1760227386773,5.637694,3750.7,3750.6,19.64954005]
[1760227386968,1.921,3750.7,3750.6,19.64954005]
[1760227387388,1.921,3750.7,3750.6,20.87954005]
[1760227388593,1.921,3750.7,3750.6,22.7950366]
[1760227388796,0.001,3750.7,3750.6,24.4663366]
[1760227389157,0.001,3751.1,3750.6,24.4663366]
[1760227389468,0.00080003,3750.7,3750.6,27.3248645]
[1760227389861,0.00080003,3750.7,3750.6,27.7661645]
[1760227390329,0.00080003,3750.7,3750.6,29.2617645]
[1760227390903,0.00080003,3750.7,3750.6,26.5955366]
[1760227391202,0.00080003,3750.7,3750.6,25.6963366]
[1760227391499,0.00080003,3750.7,3750.6,23.78084005]
[1760227391699,0.00080003,3750.7,3750.6,24.56954005]
[1760227391700,4.43920203,3750.7,3750.6,24.56954005]
[1760227391858,4.43920203,3750.7,3750.6,24.51539519]
[1760227392062,4.94055869,3750.7,3750.6,24.51539519]
[1760227392772,9.76945503,3750.7,3750.6,24.51539519]
[1760227392988,9.86975503,3750.7,3750.6,25.74539519]
[1760227393364,12.53592401,3750.7,3750.6,25.74539519]
[1760227393905,33.94142501,3750.7,3750.6,25.74539519]
[1760227394494,33.94142501,3750.7,3750.6,26.97539519]
[1760227394705,30.56921301,3750.7,3750.6,26.97539519]
[1760227395809,24.14495303,3750.7,3750.6,28.20539519]